[Event "*** SCC Grand Prix: Titled Tuesday Blitz"]
[Site "Chess.com"]
[Date "2020.10.06"]
[Round "6"]
[White "DeGrootteZ"]
[Black "JoliyRoger"]
[Result "1-0"]
[WhiteElo "2640"]
[BlackElo "2460"]
[TimeControl "180+1"]
[EndTime "11:07:23 PDT"]
[Termination "DeGrootteZ won on time"]

1. d4 {[%clk 0:03:00.9]} 1... Nf6 {[%clk 0:02:58.7]} 2. c4 {[%clk 0:03:01.2]}
2... e6 {[%clk 0:02:58.4]} 3. Nf3 {[%clk 0:03:01]} 3... Bb4+ {[%clk 0:02:57.5]}
4. Nc3 {[%clk 0:03:00.4]} 4... b6 {[%clk 0:02:57.1]} 5. g3 {[%clk 0:03:00.1]}
5... Bb7 {[%clk 0:02:57.4]} 6. Bg2 {[%clk 0:03:00.7]} 6... Ne4 {[%clk
0:02:52.8]} 7. O-O {[%clk 0:02:55.6]} 7... Bxc3 {[%clk 0:02:34.6]} 8. bxc3
{[%clk 0:02:56.5]} 8... O-O {[%clk 0:02:33.9]} 9. Qc2 {[%clk 0:02:51.9]} 9... f5
{[%clk 0:02:31.6]} 10. Ng5 {[%clk 0:02:49.4]} 10... h6 {[%clk 0:01:59.2]} 11.
Nxe4 {[%clk 0:02:48.6]} 11... fxe4 {[%clk 0:01:59.8]} 12. Bxe4 {[%clk
0:02:49.5]} 12... Bxe4 {[%clk 0:01:59.4]} 13. Qxe4 {[%clk 0:02:50.4]} 13... Na6
{[%clk 0:01:33]} 14. a4 {[%clk 0:02:46.6]} 14... c5 {[%clk 0:01:01.8]} 15. a5
{[%clk 0:02:41.8]} 15... bxa5 {[%clk 0:00:54.4]} 16. Bf4 {[%clk 0:02:42.2]}
16... Rc8 {[%clk 0:00:39.9]} 17. Bd6 {[%clk 0:02:40]} 17... Rf5 {[%clk
0:00:40.3]} 18. Qb7 {[%clk 0:02:34.1]} 18... Nb8 {[%clk 0:00:31]} 19. d5 {[%clk
0:02:33.8]} 19... exd5 {[%clk 0:00:22.7]} 20. cxd5 {[%clk 0:02:34.7]} 20... Rf6
{[%clk 0:00:22.9]} 21. Be5 {[%clk 0:02:31]} 21... Rb6 {[%clk 0:00:22.1]} 22.
Qxa7 {[%clk 0:02:30.9]} 22... d6 {[%clk 0:00:22.6]} 23. Bf4 {[%clk 0:02:28.6]}
23... Ra6 {[%clk 0:00:20.9]} 24. Qb7 {[%clk 0:02:25.3]} 24... Rc7 {[%clk
0:00:19.8]} 25. Qb5 {[%clk 0:02:18.6]} 25... Rca7 {[%clk 0:00:19.8]} 26. Ra4
{[%clk 0:02:14]} 26... Nd7 {[%clk 0:00:19.1]} 27. Rfa1 {[%clk 0:02:06.5]} 27...
Nb6 {[%clk 0:00:19.2]} 28. Rxa5 {[%clk 0:02:04.8]} 28... Rxa5 {[%clk 0:00:15.2]}
29. Rxa5 {[%clk 0:02:05.7]} 29... Rxa5 {[%clk 0:00:12.7]} 30. Qxa5 {[%clk
0:02:06.6]} 30... Qb8 {[%clk 0:00:13.1]} 31. e4 {[%clk 0:02:01.7]} 31... g5
{[%clk 0:00:08.5]} 32. Bc1 {[%clk 0:01:51.1]} 32... Nc4 {[%clk 0:00:08.8]} 33.
Qa4 {[%clk 0:01:51.4]} 33... Ne5 {[%clk 0:00:08.2]} 34. Kg2 {[%clk 0:01:46.4]}
34... Qf8 {[%clk 0:00:07]} 35. f4 {[%clk 0:01:44.8]} 35... gxf4 {[%clk
0:00:06.4]} 36. Bxf4 {[%clk 0:01:45.2]} 36... Nd3 {[%clk 0:00:03]} 37. Kf3
{[%clk 0:01:22.5]} 37... Ne5+ {[%clk 0:00:02.8]} 38. Ke2 {[%clk 0:01:22.7]}
38... Ng4 {[%clk 0:00:02.3]} 39. Qd7 {[%clk 0:01:21.5]} 39... Nxh2 {[%clk
0:00:01.9]} 40. Qe6+ {[%clk 0:01:17.3]} 40... Kh7 {[%clk 0:00:02.2]} 41. Qxd6
{[%clk 0:01:16]} 1-0

[Event "*** SCC Grand Prix: Titled Tuesday Blitz"]
[Site "Chess.com"]
[Date "2020.10.06"]
[Round "6"]
[White "crossingthestreet"]
[Black "teacher4chess"]
[Result "1-0"]
[WhiteElo "2432"]
[BlackElo "2000"]
[TimeControl "180+1"]
[EndTime "11:07:29 PDT"]
[Termination "crossingthestreet won on time"]

1. c4 {[%clk 0:03:00.9]} 1... e6 {[%clk 0:02:58.3]} 2. Nc3 {[%clk 0:03:01.2]}
2... Nf6 {[%clk 0:02:57.9]} 3. Nf3 {[%clk 0:03:01.2]} 3... d5 {[%clk 0:02:57.7]}
4. e3 {[%clk 0:03:01.4]} 4... c6 {[%clk 0:02:56.4]} 5. b3 {[%clk 0:03:01.3]}
5... Nbd7 {[%clk 0:02:53.7]} 6. Qc2 {[%clk 0:02:26.7]} 6... Bd6 {[%clk 0:02:41]}
7. Bb2 {[%clk 0:02:25.9]} 7... a6 {[%clk 0:02:37.2]} 8. d4 {[%clk 0:02:24.5]}
8... dxc4 {[%clk 0:02:17]} 9. Bxc4 {[%clk 0:02:19.5]} 9... b5 {[%clk 0:02:12.3]}
10. Be2 {[%clk 0:02:12.4]} 10... Bb7 {[%clk 0:02:10.1]} 11. a4 {[%clk
0:02:07.4]} 11... b4 {[%clk 0:02:06.7]} 12. Nb1 {[%clk 0:02:07.7]} 12... c5
{[%clk 0:01:58.2]} 13. Nbd2 {[%clk 0:02:07.6]} 13... Rc8 {[%clk 0:01:55.8]} 14.
Nc4 {[%clk 0:02:07.8]} 14... Be7 {[%clk 0:01:19.1]} 15. a5 {[%clk 0:02:07.6]}
15... cxd4 {[%clk 0:01:16.7]} 16. Nxd4 {[%clk 0:02:04.7]} 16... Bxg2 {[%clk
0:01:06.9]} 17. Rg1 {[%clk 0:02:03.6]} 17... Be4 {[%clk 0:01:06.6]} 18. Bd3
{[%clk 0:02:04]} 18... Bxd3 {[%clk 0:01:02.7]} 19. Qxd3 {[%clk 0:02:04.9]} 19...
Nc5 {[%clk 0:00:58.5]} 20. Qe2 {[%clk 0:01:59.6]} 20... O-O {[%clk 0:00:42.6]}
21. Rd1 {[%clk 0:01:45.6]} 21... Qc7 {[%clk 0:00:32]} 22. f3 {[%clk 0:01:45.9]}
22... Nxb3 {[%clk 0:00:24.7]} 23. Nxb3 {[%clk 0:01:37.9]} 23... Qxc4 {[%clk
0:00:24.6]} 24. Qg2 {[%clk 0:01:38.5]} 24... g6 {[%clk 0:00:22.9]} 25. Nd4
{[%clk 0:01:38.5]} 25... e5 {[%clk 0:00:19.8]} 26. Ne2 {[%clk 0:01:34.7]} 26...
Qb3 {[%clk 0:00:19.2]} 27. Bxe5 {[%clk 0:01:30.7]} 27... Qxe3 {[%clk 0:00:18.9]}
28. Bd4 {[%clk 0:01:31.3]} 28... Qe6 {[%clk 0:00:18.3]} 29. Kf2 {[%clk
0:01:28.9]} 29... b3 {[%clk 0:00:16.4]} 30. Rge1 {[%clk 0:01:26.3]} 30... Bb4
{[%clk 0:00:14.8]} 31. Nf4 {[%clk 0:01:22.3]} 31... Qc6 {[%clk 0:00:14.6]} 32.
Re2 {[%clk 0:01:20.5]} 32... Rfd8 {[%clk 0:00:11]} 33. Qg5 {[%clk 0:01:15.1]}
33... Be7 {[%clk 0:00:03.7]} 34. Rxe7 {[%clk 0:01:10.6]} 34... Qc2+ {[%clk
0:00:03.7]} 35. Ne2 {[%clk 0:01:06.4]} 35... Qxd1 {[%clk 0:00:03.3]} 36. Qxf6
{[%clk 0:01:06.4]} 1-0

[Event "*** SCC Grand Prix: Titled Tuesday Blitz"]
[Site "Chess.com"]
[Date "2020.10.06"]
[Round "6"]
[White "andresgv36"]
[Black "Skatchkov_V"]
[Result "0-1"]
[WhiteElo "2419"]
[BlackElo "2593"]
[TimeControl "180+1"]
[EndTime "11:07:30 PDT"]
[Termination "Skatchkov_V won on time"]

1. d4 {[%clk 0:03:00.9]} 1... Nf6 {[%clk 0:02:59]} 2. Bf4 {[%clk 0:02:59.7]}
2... e6 {[%clk 0:02:59]} 3. e3 {[%clk 0:02:59.3]} 3... d5 {[%clk 0:02:59.4]} 4.
Nf3 {[%clk 0:02:59.3]} 4... c5 {[%clk 0:03:00.2]} 5. c3 {[%clk 0:02:58.6]} 5...
Nc6 {[%clk 0:02:59.5]} 6. Bd3 {[%clk 0:02:55.4]} 6... Bd6 {[%clk 0:02:59.5]} 7.
Bg3 {[%clk 0:02:53.3]} 7... O-O {[%clk 0:02:58.6]} 8. Nbd2 {[%clk 0:02:53.2]}
8... b6 {[%clk 0:02:58]} 9. e4 {[%clk 0:02:49.8]} 9... Be7 {[%clk 0:02:55.5]}
10. e5 {[%clk 0:02:48.3]} 10... Nh5 {[%clk 0:02:54.7]} 11. Ng5 {[%clk
0:02:43.4]} 11... Bxg5 {[%clk 0:02:53.9]} 12. Qxh5 {[%clk 0:02:41.7]} 12... g6
{[%clk 0:02:54.2]} 13. Qe2 {[%clk 0:02:40.1]} 13... cxd4 {[%clk 0:02:54.5]} 14.
h4 {[%clk 0:02:39.9]} 14... Bh6 {[%clk 0:02:54.3]} 15. h5 {[%clk 0:02:39.8]}
15... Bg7 {[%clk 0:02:51.7]} 16. h6 {[%clk 0:02:05.4]} 16... Bh8 {[%clk
0:02:51.7]} 17. Nf3 {[%clk 0:01:58]} 17... dxc3 {[%clk 0:02:47.6]} 18. bxc3
{[%clk 0:01:57]} 18... f5 {[%clk 0:02:23]} 19. Bf4 {[%clk 0:01:37.5]} 19... Bd7
{[%clk 0:02:09.7]} 20. O-O {[%clk 0:01:34.5]} 20... Qc7 {[%clk 0:01:51]} 21.
Rfe1 {[%clk 0:01:32.8]} 21... Nd8 {[%clk 0:01:39.9]} 22. c4 {[%clk 0:01:23.5]}
22... dxc4 {[%clk 0:01:37.5]} 23. Bxc4 {[%clk 0:01:21.6]} 23... Nf7 {[%clk
0:01:37.5]} 24. Rac1 {[%clk 0:01:15.1]} 24... Qd8 {[%clk 0:01:34.8]} 25. Qe3
{[%clk 0:00:41.2]} 25... Rc8 {[%clk 0:01:30.8]} 26. Bb3 {[%clk 0:00:35.2]} 26...
Qe7 {[%clk 0:01:28.4]} 27. Rcd1 {[%clk 0:00:28.8]} 27... Rc5 {[%clk 0:01:21.4]}
28. Rd2 {[%clk 0:00:15.2]} 28... Bc6 {[%clk 0:01:14.1]} 29. Nd4 {[%clk
0:00:11.2]} 29... Bd5 {[%clk 0:01:13.6]} 30. Bxd5 {[%clk 0:00:10.2]} 30... Rxd5
{[%clk 0:01:14.5]} 31. Nf3 {[%clk 0:00:07.6]} 31... Rfd8 {[%clk 0:01:13]} 32.
Rc2 {[%clk 0:00:06.1]} 32... Rd3 {[%clk 0:01:02.7]} 33. Qe2 {[%clk 0:00:05.4]}
33... g5 {[%clk 0:01:01.6]} 34. Bh2 {[%clk 0:00:02.3]} 34... g4 {[%clk 0:01:00]}
0-1

[Event "*** SCC Grand Prix: Titled Tuesday Blitz"]
[Site "Chess.com"]
[Date "2020.10.06"]
[Round "6"]
[White "Alexander_Moskalenko"]
[Black "Fy_Rakotomaharo"]
[Result "1-0"]
[WhiteElo "2817"]
[BlackElo "2633"]
[TimeControl "180+1"]
[EndTime "11:07:35 PDT"]
[Termination "Alexander_Moskalenko won by resignation"]

1. d4 {[%clk 0:03:00.9]} 1... Nf6 {[%clk 0:03:00]} 2. c4 {[%clk 0:03:01.3]} 2...
g6 {[%clk 0:02:59.4]} 3. Nc3 {[%clk 0:02:59.9]} 3... d5 {[%clk 0:02:59.9]} 4.
cxd5 {[%clk 0:02:57.4]} 4... Nxd5 {[%clk 0:03:00.8]} 5. Bd2 {[%clk 0:02:57.7]}
5... Nb6 {[%clk 0:03:00.8]} 6. Nf3 {[%clk 0:02:56.9]} 6... Bg7 {[%clk
0:03:01.2]} 7. e4 {[%clk 0:02:57.4]} 7... O-O {[%clk 0:02:55.9]} 8. Be3 {[%clk
0:02:52.3]} 8... Bg4 {[%clk 0:02:50.8]} 9. Be2 {[%clk 0:02:29.7]} 9... Nc6
{[%clk 0:02:43.9]} 10. d5 {[%clk 0:02:30]} 10... Na5 {[%clk 0:02:43.7]} 11. Bd4
{[%clk 0:02:23.9]} 11... Bxf3 {[%clk 0:02:42.8]} 12. Bxg7 {[%clk 0:02:08.4]}
12... Bxe2 {[%clk 0:02:10.8]} 13. Qd4 {[%clk 0:02:08.6]} 13... Re8 {[%clk
0:02:08.6]} 14. Nxe2 {[%clk 0:02:05.6]} 14... e5 {[%clk 0:01:21.8]} 15. Bxe5
{[%clk 0:02:03]} 15... c5 {[%clk 0:01:22.4]} 16. dxc6 {[%clk 0:01:50]} 16...
Qxd4 {[%clk 0:01:06.2]} 17. Bxd4 {[%clk 0:01:49]} 17... Rxe4 {[%clk 0:01:06.4]}
18. f3 {[%clk 0:01:42.9]} 18... Re6 {[%clk 0:01:03.2]} 19. cxb7 {[%clk
0:01:41.2]} 19... Nxb7 {[%clk 0:01:03]} 20. Kf2 {[%clk 0:01:38.2]} 20... Nd5
{[%clk 0:00:51.9]} 21. Nc3 {[%clk 0:01:24.7]} 21... Nb4 {[%clk 0:00:39.8]} 22.
Rad1 {[%clk 0:01:24.6]} 22... f5 {[%clk 0:00:25.7]} 23. Rd2 {[%clk 0:01:09]}
23... a5 {[%clk 0:00:21.7]} 24. Rhd1 {[%clk 0:01:09.9]} 24... Rae8 {[%clk
0:00:21.3]} 25. h4 {[%clk 0:01:02.8]} 25... Nd6 {[%clk 0:00:19.4]} 26. a3 {[%clk
0:00:50.6]} 26... Nc6 {[%clk 0:00:16.4]} 27. Nd5 {[%clk 0:00:51.2]} 27... Nxd4
{[%clk 0:00:14.5]} 28. Rxd4 {[%clk 0:00:52.1]} 28... Re2+ {[%clk 0:00:13.8]} 29.
Kg3 {[%clk 0:00:52.7]} 29... Kf7 {[%clk 0:00:11.8]} 30. Nf4 {[%clk 0:00:52.9]}
30... Rxb2 {[%clk 0:00:08.7]} 31. Rxd6 {[%clk 0:00:52.8]} 31... Rc8 {[%clk
0:00:09.2]} 32. Rd7+ {[%clk 0:00:52.7]} 32... Ke8 {[%clk 0:00:09.8]} 33. Rxh7
{[%clk 0:00:52]} 33... Rcc2 {[%clk 0:00:10.4]} 34. Re1+ {[%clk 0:00:51.3]} 34...
Kf8 {[%clk 0:00:10.8]} 35. Ra7 {[%clk 0:00:47.5]} 35... Rb5 {[%clk 0:00:09.7]}
36. Nxg6+ {[%clk 0:00:47.5]} 1-0

[Event "*** SCC Grand Prix: Titled Tuesday Blitz"]
[Site "Chess.com"]
[Date "2020.10.06"]
[Round "6"]
[White "serena-maria"]
[Black "Sesleria"]
[Result "1-0"]
[WhiteElo "2283"]
[BlackElo "2104"]
[TimeControl "180+1"]
[EndTime "11:07:36 PDT"]
[Termination "serena-maria won by resignation"]

1. Nf3 {[%clk 0:03:00.9]} 1... Nf6 {[%clk 0:02:59.1]} 2. g3 {[%clk 0:03:01.4]}
2... g6 {[%clk 0:02:57.3]} 3. Bg2 {[%clk 0:03:01.9]} 3... Bg7 {[%clk 0:02:57.8]}
4. O-O {[%clk 0:03:02.3]} 4... O-O {[%clk 0:02:57.9]} 5. c4 {[%clk 0:03:02.9]}
5... d6 {[%clk 0:02:54.5]} 6. Nc3 {[%clk 0:03:03.2]} 6... Nc6 {[%clk 0:02:51.3]}
7. d3 {[%clk 0:03:03.5]} 7... a6 {[%clk 0:02:44]} 8. Rb1 {[%clk 0:03:02.8]} 8...
Bd7 {[%clk 0:02:40.5]} 9. b4 {[%clk 0:03:01.5]} 9... e5 {[%clk 0:02:24.5]} 10.
Nd2 {[%clk 0:02:58.4]} 10... Rb8 {[%clk 0:02:20.1]} 11. a4 {[%clk 0:02:55.7]}
11... Nd4 {[%clk 0:02:15.3]} 12. b5 {[%clk 0:02:53.3]} 12... c5 {[%clk 0:01:56]}
13. Nde4 {[%clk 0:02:42.5]} 13... Nxe4 {[%clk 0:01:54.5]} 14. dxe4 {[%clk
0:02:22.5]} 14... Qe7 {[%clk 0:01:11.9]} 15. Nd5 {[%clk 0:02:09.8]} 15... Qd8
{[%clk 0:01:12]} 16. Qd3 {[%clk 0:01:52.4]} 16... f5 {[%clk 0:00:54.8]} 17. e3
{[%clk 0:01:28.4]} 17... Ne6 {[%clk 0:00:51.8]} 18. exf5 {[%clk 0:01:28.3]}
18... gxf5 {[%clk 0:00:51.2]} 19. bxa6 {[%clk 0:01:11.2]} 19... bxa6 {[%clk
0:00:42.4]} 20. Rxb8 {[%clk 0:01:12.1]} 20... Qxb8 {[%clk 0:00:42.3]} 21. Ne7+
{[%clk 0:01:11.3]} 21... Kh8 {[%clk 0:00:42.2]} 22. Nxf5 {[%clk 0:01:11.1]}
22... Bxa4 {[%clk 0:00:39]} 23. Qxd6 {[%clk 0:00:57.2]} 23... Qxd6 {[%clk
0:00:27]} 24. Nxd6 {[%clk 0:00:58.1]} 24... Rb8 {[%clk 0:00:22.3]} 25. Nb7
{[%clk 0:00:40]} 25... Bb3 {[%clk 0:00:17.8]} 26. Bd5 {[%clk 0:00:40.3]} 26...
Nc7 {[%clk 0:00:16.4]} 27. Nxc5 {[%clk 0:00:39.8]} 27... Nxd5 {[%clk 0:00:15.7]}
28. Nxb3 {[%clk 0:00:39.8]} 28... Nxe3 {[%clk 0:00:13.1]} 29. Bxe3 {[%clk
0:00:35.2]} 29... Rxb3 {[%clk 0:00:13.2]} 30. Ra1 {[%clk 0:00:34.3]} 30... Bf6
{[%clk 0:00:07.5]} 31. Rxa6 {[%clk 0:00:33.5]} 31... Rc3 {[%clk 0:00:07.8]} 32.
Rxf6 {[%clk 0:00:32.6]} 1-0

[Event "*** SCC Grand Prix: Titled Tuesday Blitz"]
[Site "Chess.com"]
[Date "2020.10.06"]
[Round "6"]
[White "MarceloPlaya"]
[Black "rynos0411"]
[Result "1-0"]
[WhiteElo "2260"]
[BlackElo "2398"]
[TimeControl "180+1"]
[EndTime "11:07:37 PDT"]
[Termination "MarceloPlaya won by resignation"]

1. e4 {[%clk 0:03:00.9]} 1... d6 {[%clk 0:02:58.7]} 2. d4 {[%clk 0:02:59.6]}
2... Nf6 {[%clk 0:02:59.2]} 3. Nc3 {[%clk 0:02:58.4]} 3... c6 {[%clk 0:02:59.3]}
4. Bg5 {[%clk 0:02:56.3]} 4... Nbd7 {[%clk 0:02:56.8]} 5. Qd2 {[%clk 0:02:55.3]}
5... e5 {[%clk 0:02:55.6]} 6. O-O-O {[%clk 0:02:52.4]} 6... Be7 {[%clk
0:02:55.4]} 7. h4 {[%clk 0:02:50.7]} 7... h6 {[%clk 0:02:55.1]} 8. Be3 {[%clk
0:02:49.9]} 8... Ng4 {[%clk 0:02:52.8]} 9. Kb1 {[%clk 0:02:47.2]} 9... Nxe3
{[%clk 0:02:51.5]} 10. Qxe3 {[%clk 0:02:46.5]} 10... Qc7 {[%clk 0:02:44.9]} 11.
f4 {[%clk 0:02:44]} 11... Bf6 {[%clk 0:02:41.9]} 12. Nf3 {[%clk 0:02:42.3]}
12... b5 {[%clk 0:02:34]} 13. g4 {[%clk 0:02:37.9]} 13... Bb7 {[%clk 0:02:29.4]}
14. g5 {[%clk 0:02:34.6]} 14... hxg5 {[%clk 0:02:28.6]} 15. fxg5 {[%clk
0:02:33.1]} 15... Be7 {[%clk 0:02:28.3]} 16. d5 {[%clk 0:02:30.9]} 16... b4
{[%clk 0:01:59.1]} 17. dxc6 {[%clk 0:02:29.9]} 17... Bxc6 {[%clk 0:01:57]} 18.
Nd5 {[%clk 0:02:25.8]} 18... Bxd5 {[%clk 0:01:56.7]} 19. Rxd5 {[%clk 0:02:22.9]}
19... a6 {[%clk 0:01:51.7]} 20. h5 {[%clk 0:02:15.7]} 20... Nb6 {[%clk
0:01:47.9]} 21. Rd1 {[%clk 0:02:08.3]} 21... Nc4 {[%clk 0:01:40.7]} 22. Bxc4
{[%clk 0:02:05.9]} 22... Qxc4 {[%clk 0:01:41.6]} 23. h6 {[%clk 0:02:01.5]} 23...
gxh6 {[%clk 0:01:41.3]} 24. gxh6 {[%clk 0:01:57.2]} 24... Rc8 {[%clk 0:01:27.3]}
25. Rd2 {[%clk 0:01:52.4]} 25... Qc5 {[%clk 0:01:25.1]} 26. Qe2 {[%clk
0:01:44.2]} 26... Qc4 {[%clk 0:01:22.1]} 27. Rd3 {[%clk 0:01:36.8]} 27... a5
{[%clk 0:00:58.5]} 28. h7 {[%clk 0:01:34.4]} 28... a4 {[%clk 0:00:57.8]} 29. b3
{[%clk 0:01:30.3]} 29... axb3 {[%clk 0:00:57.1]} 30. axb3 {[%clk 0:01:27.5]}
30... Qa6 {[%clk 0:00:55.5]} 31. Qg2 {[%clk 0:01:19.5]} 31... Ra8 {[%clk
0:00:48.1]} 32. Kc1 {[%clk 0:01:15.4]} 32... Bf6 {[%clk 0:00:35.1]} 33. Kd2
{[%clk 0:01:11.4]} 33... Ke7 {[%clk 0:00:32.2]} 34. Nh4 {[%clk 0:01:07]} 34...
Bxh4 {[%clk 0:00:24.3]} 35. Rxh4 {[%clk 0:01:05.9]} 35... Qb6 {[%clk 0:00:19]}
36. Qg5+ {[%clk 0:01:04.6]} 36... Kf8 {[%clk 0:00:19.1]} 37. Qh6+ {[%clk
0:00:59.5]} 37... Ke7 {[%clk 0:00:19]} 38. Rh2 {[%clk 0:00:52.6]} 38... Rab8
{[%clk 0:00:18.7]} 39. Qg5+ {[%clk 0:00:48.9]} 39... Kf8 {[%clk 0:00:18.9]} 40.
Qf6 {[%clk 0:00:47.5]} 1-0

[Event "*** SCC Grand Prix: Titled Tuesday Blitz"]
[Site "Chess.com"]
[Date "2020.10.06"]
[Round "6"]
[White "Azerichess"]
[Black "TrimitziosP7"]
[Result "1-0"]
[WhiteElo "2922"]
[BlackElo "2810"]
[TimeControl "180+1"]
[EndTime "11:07:38 PDT"]
[Termination "Azerichess won by resignation"]

1. d4 {[%clk 0:03:00.9]} 1... Nf6 {[%clk 0:02:58]} 2. c4 {[%clk 0:03:01.2]} 2...
e6 {[%clk 0:02:57.6]} 3. Nc3 {[%clk 0:03:01.7]} 3... Bb4 {[%clk 0:02:54.8]} 4.
Qc2 {[%clk 0:03:02.1]} 4... O-O {[%clk 0:02:51.6]} 5. a3 {[%clk 0:02:59.6]} 5...
Be7 {[%clk 0:02:47.3]} 6. e4 {[%clk 0:02:57.3]} 6... d6 {[%clk 0:02:47.6]} 7. e5
{[%clk 0:02:53.8]} 7... dxe5 {[%clk 0:02:45.3]} 8. dxe5 {[%clk 0:02:54.7]} 8...
Nfd7 {[%clk 0:02:46.2]} 9. Nf3 {[%clk 0:02:53.9]} 9... c5 {[%clk 0:02:34.4]} 10.
Bf4 {[%clk 0:02:47.3]} 10... Nc6 {[%clk 0:02:29.3]} 11. O-O-O {[%clk 0:02:47.4]}
11... f6 {[%clk 0:02:20.8]} 12. Bd3 {[%clk 0:02:44.1]} 12... f5 {[%clk
0:02:15.4]} 13. Kb1 {[%clk 0:02:28.2]} 13... a6 {[%clk 0:02:06.7]} 14. h4 {[%clk
0:02:25.3]} 14... Nd4 {[%clk 0:02:03.7]} 15. Qd2 {[%clk 0:02:14.3]} 15... b5
{[%clk 0:01:58.4]} 16. Ne2 {[%clk 0:02:07.4]} 16... Nxe2 {[%clk 0:01:50.2]} 17.
Bxe2 {[%clk 0:02:03.9]} 17... Qc7 {[%clk 0:01:45.5]} 18. Rhg1 {[%clk 0:01:49.6]}
18... Rd8 {[%clk 0:01:35.9]} 19. g4 {[%clk 0:01:42.7]} 19... Nb6 {[%clk
0:01:32]} 20. Qe3 {[%clk 0:01:38.7]} 20... Bb7 {[%clk 0:01:23.3]} 21. gxf5
{[%clk 0:01:36.9]} 21... Rxd1+ {[%clk 0:01:19.6]} 22. Rxd1 {[%clk 0:01:35.8]}
22... exf5 {[%clk 0:01:14.6]} 23. cxb5 {[%clk 0:01:25.3]} 23... axb5 {[%clk
0:01:09]} 24. Bxb5 {[%clk 0:01:25.1]} 24... c4 {[%clk 0:00:58]} 25. e6 {[%clk
0:01:22.3]} 25... Qc8 {[%clk 0:00:52.6]} 26. Qxb6 {[%clk 0:01:14.2]} 26... Be4+
{[%clk 0:00:47]} 27. Ka2 {[%clk 0:01:10.5]} 27... Bxf3 {[%clk 0:00:46.9]} 28.
Rd7 {[%clk 0:01:09.9]} 28... Qf8 {[%clk 0:00:31.3]} 29. Bd6 {[%clk 0:01:06.5]}
29... Bxd6 {[%clk 0:00:25.8]} 30. Qxd6 {[%clk 0:01:05.9]} 30... Qxd6 {[%clk
0:00:24.9]} 31. Rxd6 {[%clk 0:01:06.8]} 31... h6 {[%clk 0:00:19.6]} 32. e7
{[%clk 0:01:05.4]} 32... Kf7 {[%clk 0:00:17.6]} 33. e8=Q+ {[%clk 0:01:02.9]}
33... Rxe8 {[%clk 0:00:18]} 34. Bxe8+ {[%clk 0:01:03.3]} 34... Kxe8 {[%clk
0:00:18.9]} 35. a4 {[%clk 0:01:02.2]} 35... Ke7 {[%clk 0:00:13.6]} 36. Rd4
{[%clk 0:01:02]} 36... g5 {[%clk 0:00:08.7]} 37. hxg5 {[%clk 0:01:02.2]} 37...
hxg5 {[%clk 0:00:08.8]} 38. a5 {[%clk 0:01:02.7]} 38... Kf6 {[%clk 0:00:05.4]}
39. a6 {[%clk 0:01:02.3]} 39... Ke5 {[%clk 0:00:05.7]} 40. Rxc4 {[%clk
0:01:02.6]} 40... Bd5 {[%clk 0:00:05.6]} 41. b3 {[%clk 0:01:03]} 1-0

[Event "*** SCC Grand Prix: Titled Tuesday Blitz"]
[Site "Chess.com"]
[Date "2020.10.06"]
[Round "6"]
[White "Xeniya2005"]
[Black "burbur555"]
[Result "0-1"]
[WhiteElo "2391"]
[BlackElo "2586"]
[TimeControl "180+1"]
[EndTime "11:07:39 PDT"]
[Termination "burbur555 won on time"]

1. e4 {[%clk 0:03:00.9]} 1... c6 {[%clk 0:03:00.2]} 2. d4 {[%clk 0:03:00.3]}
2... d5 {[%clk 0:03:00.3]} 3. Nd2 {[%clk 0:03:00.7]} 3... dxe4 {[%clk
0:02:59.1]} 4. Nxe4 {[%clk 0:03:01.6]} 4... Bf5 {[%clk 0:02:58.3]} 5. Ng3 {[%clk
0:03:01.7]} 5... Bg6 {[%clk 0:02:58.2]} 6. h4 {[%clk 0:03:01.1]} 6... h6 {[%clk
0:02:58]} 7. Nf3 {[%clk 0:03:00.9]} 7... Nd7 {[%clk 0:02:57.3]} 8. h5 {[%clk
0:03:00.7]} 8... Bh7 {[%clk 0:02:57.2]} 9. Bd3 {[%clk 0:03:01.3]} 9... Bxd3
{[%clk 0:02:57.3]} 10. Qxd3 {[%clk 0:03:02.2]} 10... e6 {[%clk 0:02:56.1]} 11.
Bd2 {[%clk 0:02:58.1]} 11... Qc7 {[%clk 0:02:55.5]} 12. O-O-O {[%clk 0:02:56.2]}
12... O-O-O {[%clk 0:02:55.3]} 13. Kb1 {[%clk 0:02:46]} 13... Ngf6 {[%clk
0:02:54.3]} 14. Ne4 {[%clk 0:02:30.9]} 14... Nc5 {[%clk 0:02:51.2]} 15. Nxc5
{[%clk 0:02:28]} 15... Bxc5 {[%clk 0:02:51.6]} 16. Qc4 {[%clk 0:02:00.5]} 16...
Bb6 {[%clk 0:02:49.6]} 17. g3 {[%clk 0:01:52.9]} 17... Rd5 {[%clk 0:02:45.4]}
18. Bf4 {[%clk 0:01:50.3]} 18... Qe7 {[%clk 0:02:43.1]} 19. Ne5 {[%clk
0:01:46.7]} 19... Bc7 {[%clk 0:02:33.4]} 20. c3 {[%clk 0:01:26.2]} 20... Bxe5
{[%clk 0:02:32.1]} 21. Bxe5 {[%clk 0:01:23.7]} 21... Rhd8 {[%clk 0:02:29.8]} 22.
Qa4 {[%clk 0:00:58.4]} 22... a6 {[%clk 0:02:26.1]} 23. c4 {[%clk 0:00:50.5]}
23... R5d7 {[%clk 0:02:25.5]} 24. f3 {[%clk 0:00:48.3]} 24... Ne8 {[%clk
0:02:23.8]} 25. Qa5 {[%clk 0:00:36]} 25... f6 {[%clk 0:02:22.9]} 26. Bf4 {[%clk
0:00:31]} 26... e5 {[%clk 0:02:14.4]} 27. Be3 {[%clk 0:00:20.5]} 27... exd4
{[%clk 0:02:12.2]} 28. Bf4 {[%clk 0:00:20.6]} 28... Qe2 {[%clk 0:01:59.9]} 29.
Qc5 {[%clk 0:00:17.2]} 29... d3 {[%clk 0:01:55.8]} 30. Rhe1 {[%clk 0:00:16.8]}
30... Qc2+ {[%clk 0:01:53.3]} 31. Ka1 {[%clk 0:00:16.3]} 31... d2 {[%clk
0:01:53.3]} 32. Rf1 {[%clk 0:00:15.4]} 32... Nc7 {[%clk 0:01:50.6]} 33. Qb6
{[%clk 0:00:14.9]} 33... Re8 {[%clk 0:01:46.7]} 34. Rxd2 {[%clk 0:00:13.3]}
34... Qxd2 {[%clk 0:01:30.7]} 35. Bxd2 {[%clk 0:00:12.7]} 35... Rxd2 {[%clk
0:01:30.8]} 36. Qb4 {[%clk 0:00:11.4]} 36... Ree2 {[%clk 0:01:30.4]} 37. Rb1
{[%clk 0:00:10.9]} 37... Ne6 {[%clk 0:01:26.7]} 38. g4 {[%clk 0:00:09.7]} 38...
Nd4 {[%clk 0:01:25.9]} 39. Qf8+ {[%clk 0:00:03]} 39... Kc7 {[%clk 0:01:25.7]}
40. Qxg7+ {[%clk 0:00:03.1]} 40... Kb6 {[%clk 0:01:24.5]} 41. a3 {[%clk
0:00:02.8]} 41... a5 {[%clk 0:01:23.6]} 42. Qxf6 {[%clk 0:00:02.2]} 42... a4
{[%clk 0:01:23.6]} 43. g5 {[%clk 0:00:01.8]} 43... Nb3+ {[%clk 0:01:23.2]} 44.
Ka2 {[%clk 0:00:01.7]} 44... hxg5 {[%clk 0:01:23.1]} 45. h6 {[%clk 0:00:01.7]}
45... Rh2 {[%clk 0:01:20.5]} 46. Qxg5 {[%clk 0:00:01.8]} 46... Rh3 {[%clk
0:01:19.9]} 0-1